Workbook

Sheet Varastoluettelo
C1: Varastoluettelo | F1: Korostetaanko tilattavat nimikkeet? | H1: Kyllä
B3: Merkityt tilattavat nimikkeet | C3: Varastotunnus | D3: Nimi | E3: Kuvaus | F3: Yksikköhinta | G3: Varastossa oleva määrä | H3: Varastoarvo | I3: Tilauspistetaso | J3: Tilausaika päivinä | K3: Tilausmäärä | L3: Tilaus lopetettu?
B4: =IFERROR((Varastoluettelo[[#This Row],[Varastossa oleva määrä]]<=Varastoluettelo[[#This Row],[Tilauspistetaso]])*(Varastoluettelo[[#This Row],[Tilaus lopetettu?]]="")*arvonKorostus,0) -> 1 | C4: VAR0001 | D4: Tuote 1 | E4: Kuv. 1 | F4: 51.00 € | G4: 25 | H4: =Varastoluettelo[[#This Row],[Yksikköhinta]]*Varastoluettelo[[#This Row],[Varastossa oleva määrä]] -> 1,275.00 € | I4: 29 | J4: 13 | K4: 50
B5: =IFERROR((Varastoluettelo[[#This Row],[Varastossa oleva määrä]]<=Varastoluettelo[[#This Row],[Tilauspistetaso]])*(Varastoluettelo[[#This Row],[Tilaus lopetettu?]]="")*arvonKorostus,0) -> 1 | C5: VAR0002 | D5: Nimike 2 | E5: Kuv. 2 | F5: 93.00 € | G5: 132 | H5: =Varastoluettelo[[#This Row],[Yksikköhinta]]*Varastoluettelo[[#This Row],[Varastossa oleva määrä]] -> 12,276.00 € | I5: 231 | J5: 4 | K5: 50
B6: =IFERROR((Varastoluettelo[[#This Row],[Varastossa oleva määrä]]<=Varastoluettelo[[#This Row],[Tilauspistetaso]])*(Varastoluettelo[[#This Row],[Tilaus lopetettu?]]="")*arvonKorostus,0) -> 0 | C6: VAR0003 | D6: Nimike 3 | E6: Kuv. 3 | F6: 57.00 € | G6: 151 | H6: =Varastoluettelo[[#This Row],[Yksikköhinta]]*Varastoluettelo[[#This Row],[Varastossa oleva määrä]] -> 8,607.00 € | I6: 114 | J6: 11 | K6: 150
B7: =IFERROR((Varastoluettelo[[#This Row],[Varastossa oleva määrä]]<=Varastoluettelo[[#This Row],[Tilauspistetaso]])*(Varastoluettelo[[#This Row],[Tilaus lopetettu?]]="")*arvonKorostus,0) -> 0 | C7: VAR0004 | D7: Nimike 4 | E7: Kuv. 4 | F7: 19.00 € | G7: 186 | H7: =Varastoluettelo[[#This Row],[Yksikköhinta]]*Varastoluettelo[[#This Row],[Varastossa oleva määrä]] -> 3,534.00 € | I7: 158 | J7: 6 | K7: 50
B8: =IFERROR((Varastoluettelo[[#This Row],[Varastossa oleva määrä]]<=Varastoluettelo[[#This Row],[Tilauspistetaso]])*(Varastoluettelo[[#This Row],[Tilaus lopetettu?]]="")*arvonKorostus,0) -> 0 | C8: VAR0005 | D8: Nimike 5 | E8: Kuv. 5 | F8: 75.00 € | G8: 62 | H8: =Varastoluettelo[[#This Row],[Yksikköhinta]]*Varastoluettelo[[#This Row],[Varastossa oleva määrä]] -> 4,650.00 € | I8: 39 | J8: 12 | K8: 50
B9: =IFERROR((Varastoluettelo[[#This Row],[Varastossa oleva määrä]]<=Varastoluettelo[[#This Row],[Tilauspistetaso]])*(Varastoluettelo[[#This Row],[Tilaus lopetettu?]]="")*arvonKorostus,0) -> 1 | C9: VAR0006 | D9: Nimike 6 | E9: Kuv. 6 | F9: 11.00 € | G9: 5 | H9: =Varastoluettelo[[#This Row],[Yksikköhinta]]*Varastoluettelo[[#This Row],[Varastossa oleva määrä]] -> 55.00 € | I9: 9 | J9: 13 | K9: 150
B10: =IFERROR((Varastoluettelo[[#This Row],[Varastossa oleva määrä]]<=Varastoluettelo[[#This Row],[Tilauspistetaso]])*(Varastoluettelo[[#This Row],[Tilaus lopetettu?]]="")*arvonKorostus,0) -> 0 | C10: VAR0007 | D10: Nimike 7 | E10: Kuv. 7 | F10: 56.00 € | G10: 58 | H10: =Varastoluettelo[[#This Row],[Yksikköhinta]]*Varastoluettelo[[#This Row],[Varastossa oleva määrä]] -> 3,248.00 € | I10: 109 | J10: 7 | K10: 100 | L10: kyllä
B11: =IFERROR((Varastoluettelo[[#This Row],[Varastossa oleva määrä]]<=Varastoluettelo[[#This Row],[Tilauspistetaso]])*(Varastoluettelo[[#This Row],[Tilaus lopetettu?]]="")*arvonKorostus,0) -> 1 | C11: VAR0008 | D11: Nimike 8 | E11: Kuv. 8 | F11: 38.00 € | G11: 101 | H11: =Varastoluettelo[[#This Row],[Yksikköhinta]]*Varastoluettelo[[#This Row],[Varastossa oleva määrä]] -> 3,838.00 € | I11: 162 | J11: 3 | K11: 100
B12: =IFERROR((Varastoluettelo[[#This Row],[Varastossa oleva määrä]]<=Varastoluettelo[[#This Row],[Tilauspistetaso]])*(Varastoluettelo[[#This Row],[Tilaus lopetettu?]]="")*arvonKorostus,0) -> 0 | C12: VAR0009 | D12: Nimike 9 | E12: Kuv. 9 | F12: 59.00 € | G12: 122 | H12: =Varastoluettelo[[#This Row],[Yksikköhinta]]*Varastoluettelo[[#This Row],[Varastossa oleva määrä]] -> 7,198.00 € | I12: 82 | J12: 3 | K12: 150
B13: =IFERROR((Varastoluettelo[[#This Row],[Varastossa oleva määrä]]<=Varastoluettelo[[#This Row],[Tilauspistetaso]])*(Varastoluettelo[[#This Row],[Tilaus lopetettu?]]="")*arvonKorostus,0) -> 1 | C13: VAR0010 | D13: Nimike 10 | E13: Kuv. 10 | F13: 50.00 € | G13: 175 | H13: =Varastoluettelo[[#This Row],[Yksikköhinta]]*Varastoluettelo[[#This Row],[Varastossa oleva määrä]] -> 8,750.00 € | I13: 283 | J13: 8 | K13: 150
B14: =IFERROR((Varastoluettelo[[#This Row],[Varastossa oleva määrä]]<=Varastoluettelo[[#This Row],[Tilauspistetaso]])*(Varastoluettelo[[#This Row],[Tilaus lopetettu?]]="")*arvonKorostus,0) -> 1 | C14: VAR0011 | D14: Nimike 11 | E14: Kuv. 11 | F14: 59.00 € | G14: 176 | H14: =Varastoluettelo[[#This Row],[Yksikköhinta]]*Varastoluettelo[[#This Row],[Varastossa oleva määrä]] -> 10,384.00 € | I14: 229 | J14: 1 | K14: 100
B15: =IFERROR((Varastoluettelo[[#This Row],[Varastossa oleva määrä]]<=Varastoluettelo[[#This Row],[Tilauspistetaso]])*(Varastoluettelo[[#This Row],[Tilaus lopetettu?]]="")*arvonKorostus,0) -> 1 | C15: VAR0012 | D15: Nimike 12 | E15: Kuv. 12 | F15: 18.00 € | G15: 22 | H15: =Varastoluettelo[[#This Row],[Yksikköhinta]]*Varastoluettelo[[#This Row],[Varastossa oleva määrä]] -> 396.00 € | I15: 36 | J15: 12 | K15: 50
B16: =IFERROR((Varastoluettelo[[#This Row],[Varastossa oleva määrä]]<=Varastoluettelo[[#This Row],[Tilauspistetaso]])*(Varastoluettelo[[#This Row],[Tilaus lopetettu?]]="")*arvonKorostus,0) -> 1 | C16: VAR0013 | D16: Nimike 13 | E16: Kuv. 13 | F16: 26.00 € | G16: 72 | H16: =Varastoluettelo[[#This Row],[Yksikköhinta]]*Varastoluettelo[[#This Row],[Varastossa oleva määrä]] -> 1,872.00 € | I16: 102 | J16: 9 | K16: 100
B17: =IFERROR((Varastoluettelo[[#This Row],[Varastossa oleva määrä]]<=Varastoluettelo[[#This Row],[Tilauspistetaso]])*(Varastoluettelo[[#This Row],[Tilaus lopetettu?]]="")*arvonKorostus,0) -> 1 | C17: VAR0014 | D17: Nimike 14 | E17: Kuv. 14 | F17: 42.00 € | G17: 62 | H17: =Varastoluettelo[[#This Row],[Yksikköhinta]]*Varastoluettelo[[#This Row],[Varastossa oleva määrä]] -> 2,604.00 € | I17: 83 | J17: 2 | K17: 100
B18: =IFERROR((Varastoluettelo[[#This Row],[Varastossa oleva määrä]]<=Varastoluettelo[[#This Row],[Tilauspistetaso]])*(Varastoluettelo[[#This Row],[Tilaus lopetettu?]]="")*arvonKorostus,0) -> 0 | C18: VAR0015 | D18: Nimike 15 | E18: Kuv. 15 | F18: 32.00 € | G18: 46 | H18: =Varastoluettelo[[#This Row],[Yksikköhinta]]*Varastoluettelo[[#This Row],[Varastossa oleva määrä]] -> 1,472.00 € | I18: 23 | J18: 15 | K18: 50
B19: =IFERROR((Varastoluettelo[[#This Row],[Varastossa oleva määrä]]<=Varastoluettelo[[#This Row],[Tilauspistetaso]])*(Varastoluettelo[[#This Row],[Tilaus lopetettu?]]="")*arvonKorostus,0) -> 1 | C19: VAR0016 | D19: Nimike 16 | E19: Kuv. 16 | F19: 90.00 € | G19: 96 | H19: =Varastoluettelo[[#This Row],[Yksikköhinta]]*Varastoluettelo[[#This Row],[Varastossa oleva määrä]] -> 8,640.00 € | I19: 180 | J19: 3 | K19: 50
B20: =IFERROR((Varastoluettelo[[#This Row],[Varastossa oleva määrä]]<=Varastoluettelo[[#This Row],[Tilauspistetaso]])*(Varastoluettelo[[#This Row],[Tilaus lopetettu?]]="")*arvonKorostus,0) -> 0 | C20: VAR0017 | D20: Nimike 17 | E20: Kuv. 17 | F20: 97.00 € | G20: 57 | H20: =Varastoluettelo[[#This Row],[Yksikköhinta]]*Varastoluettelo[[#This Row],[Varastossa oleva määrä]] -> 5,529.00 € | I20: 98 | J20: 12 | K20: 50 | L20: Kyllä
B21: =IFERROR((Varastoluettelo[[#This Row],[Varastossa oleva määrä]]<=Varastoluettelo[[#This Row],[Tilauspistetaso]])*(Varastoluettelo[[#This Row],[Tilaus lopetettu?]]="")*arvonKorostus,0) -> 1 | C21: VAR0018 | D21: Nimike 18 | E21: Kuv. 18 | F21: 12.00 € | G21: 6 | H21: =Varastoluettelo[[#This Row],[Yksikköhinta]]*Varastoluettelo[[#This Row],[Varastossa oleva määrä]] -> 72.00 € | I21: 7 | J21: 13 | K21: 50
B22: =IFERROR((Varastoluettelo[[#This Row],[Varastossa oleva määrä]]<=Varastoluettelo[[#This Row],[Tilauspistetaso]])*(Varastoluettelo[[#This Row],[Tilaus lopetettu?]]="")*arvonKorostus,0) -> 1 | C22: VAR0019 | D22: Nimike 19 | E22: Kuv. 19 | F22: 82.00 € | G22: 143 | H22: =Varastoluettelo[[#This Row],[Yksikköhinta]]*Varastoluettelo[[#This Row],[Varastossa oleva määrä]] -> 11,726.00 € | I22: 164 | J22: 12 | K22: 150
B23: =IFERROR((Varastoluettelo[[#This Row],[Varastossa oleva määrä]]<=Varastoluettelo[[#This Row],[Tilauspistetaso]])*(Varastoluettelo[[#This Row],[Tilaus lopetettu?]]="")*arvonKorostus,0) -> 0 | C23: VAR0020 | D23: Nimike 20 | E23: Kuv. 20 | F23: 16.00 € | G23: 124 | H23: =Varastoluettelo[[#This Row],[Yksikköhinta]]*Varastoluettelo[[#This Row],[Varastossa oleva määrä]] -> 1,984.00 € | I23: 113 | J23: 14 | K23: 50
B24: =IFERROR((Varastoluettelo[[#This Row],[Varastossa oleva määrä]]<=Varastoluettelo[[#This Row],[Tilauspistetaso]])*(Varastoluettelo[[#This Row],[Tilaus lopetettu?]]="")*arvonKorostus,0) -> 0 | C24: VAR0021 | D24: Nimike 21 | E24: Kuv. 21 | F24: 19.00 € | G24: 112 | H24: =Varastoluettelo[[#This Row],[Yksikköhinta]]*Varastoluettelo[[#This Row],[Varastossa oleva määrä]] -> 2,128.00 € | I24: 75 | J24: 11 | K24: 50
B25: =IFERROR((Varastoluettelo[[#This Row],[Varastossa oleva määrä]]<=Varastoluettelo[[#This Row],[Tilauspistetaso]])*(Varastoluettelo[[#This Row],[Tilaus lopetettu?]]="")*arvonKorostus,0) -> 0 | C25: VAR0022 | D25: Nimike 22 | E25: Kuv. 22 | F25: 24.00 € | G25: 182 | H25: =Varastoluettelo[[#This Row],[Yksikköhinta]]*Varastoluettelo[[#This Row],[Varastossa oleva määrä]] -> 4,368.00 € | I25: 132 | J25: 15 | K25: 150
B26: =IFERROR((Varastoluettelo[[#This Row],[Varastossa oleva määrä]]<=Varastoluettelo[[#This Row],[Tilauspistetaso]])*(Varastoluettelo[[#This Row],[Tilaus lopetettu?]]="")*arvonKorostus,0) -> 0 | C26: VAR0023 | D26: Nimike 23 | E26: Kuv. 23 | F26: 29.00 € | G26: 106 | H26: =Varastoluettelo[[#This Row],[Yksikköhinta]]*Varastoluettelo[[#This Row],[Varastossa oleva määrä]] -> 3,074.00 € | I26: 142 | J26: 1 | K26: 150 | L26: Kyllä
B27: =IFERROR((Varastoluettelo[[#This Row],[Varastossa oleva määrä]]<=Varastoluettelo[[#This Row],[Tilauspistetaso]])*(Varastoluettelo[[#This Row],[Tilaus lopetettu?]]="")*arvonKorostus,0) -> 0 | C27: VAR0024 | D27: Nimike 24 | E27: Kuv. 24 | F27: 75.00 € | G27: 173 | H27: =Varastoluettelo[[#This Row],[Yksikköhinta]]*Varastoluettelo[[#This Row],[Varastossa oleva määrä]] -> 12,975.00 € | I27: 127 | J27: 9 | K27: 100
B28: =IFERROR((Varastoluettelo[[#This Row],[Varastossa oleva määrä]]<=Varastoluettelo[[#This Row],[Tilauspistetaso]])*(Varastoluettelo[[#This Row],[Tilaus lopetettu?]]="")*arvonKorostus,0) -> 0 | C28: VAR0025 | D28: Nimike 25 | E28: Kuv. 25 | F28: 14.00 € | G28: 28 | H28: =Varastoluettelo[[#This Row],[Yksikköhinta]]*Varastoluettelo[[#This Row],[Varastossa oleva määrä]] -> 392.00 € | I28: 21 | J28: 8 | K28: 50
